fUSD/lending_fUSD_20250811
["ID","MTS","AMOUNT","RATE_DAILY","PERIOD"]
[378499694,1754886746417,-1013.752227,0.00019401,2]
[378499695,1754886746431,-151.0,0.00019401,2]
[378499696,1754886746446,-151.0,0.00019401,2]
[378499697,1754886746460,-192.910322,0.00019401,2]
[378499698,1754886746475,-1574.069305,0.00019401,2]
[378499699,1754886746495,-1574.069305,0.00019401,2]
[378499700,1754886746510,-212.798283,0.00019401,2]
[378499701,1754886746524,-212.798283,0.00019401,2]
[378499702,1754886746539,-151.0,0.00019401,2]
[378499703,1754886746552,-151.0,0.00019402,2]
[378499704,1754886746567,-151.0,0.00019402,2]
[378499705,1754886746583,-151.0,0.00019402,2]
[378499706,1754886746597,-151.0,0.00019402,2]
[378499707,1754886746613,-151.0,0.00019402,2]
[378499708,1754886746627,-155.425796,0.00019402,2]
[378499709,1754886746640,-155.425796,0.00019402,2]
[378499710,1754886746656,-151.0,0.00019402,2]
[378499711,1754886746669,-240.861115,0.00019402,2]
[378499712,1754886746684,-240.861115,0.00019402,2]
[378499713,1754886746698,-1436.017499,0.00019402,2]
[378499714,1754886746712,-1436.017499,0.00019402,2]
[378499715,1754886746726,-151.0,0.00019402,2]
[378499716,1754886746740,-668.850612,0.00019402,2]
[378499717,1754886746755,-668.850612,0.00019402,2]
[378499718,1754886746769,-151.0,0.00019402,2]
[378499719,1754886746784,-151.0,0.00019402,2]
[378499720,1754886746798,-787.880242,0.00019402,2]
[378499721,1754886746813,-787.880242,0.00019402,2]
[378499722,1754886746827,-2732.78436,0.00019402,2]
[378499723,1754886746841,-2732.78436,0.00019402,2]
[378499724,1754886746863,-1500.396645,0.00019402,2]
[378499725,1754886746877,-1500.396645,0.00019402,2]
[378499726,1754886746894,-393.373386,0.00019402,2]
[378499727,1754886746908,-393.373386,0.00019402,2]
[378499728,1754886746925,-1653.53929,0.00019402,2]
[378499729,1754886746940,-1653.53929,0.00019402,2]
[378499730,1754886746955,-499.799661,0.00019402,2]
[378499731,1754886746970,-499.799661,0.00019402,2]
[378499732,1754886746984,-1016.894515,0.00019402,2]
[378499733,1754886746998,-1016.894515,0.00019402,2]
[378499734,1754886747012,-216.042072,0.00019402,2]
[378499735,1754886747027,-216.042072,0.00019402,2]
[378499736,1754886747041,-619.776997,0.00019402,2]
[378499737,1754886747056,-619.776997,0.00019402,2]
[378499738,1754886747070,-151.0,0.00019402,2]
[378499739,1754886747085,-886.75823,0.00019402,2]
[378499740,1754886747099,-886.75823,0.00019402,2]
[378499741,1754886747114,-843.788457,0.00019402,2]
[378499742,1754886747505,-843.788457,0.00019402,2]
[378499743,1754886747527,-258.110647,0.00019402,2]
[378499744,1754886747535,-258.110647,0.00019402,2]
[378499745,1754886747545,-274.765301,0.00019402,2]
[378499746,1754886747554,-388.703329,0.00019402,2]
[378499747,1754886747563,-274.765301,0.00019402,2]
[378499748,1754886747572,-388.703329,0.00019402,2]
[378499749,1754886747581,-232.993454,0.00019402,2]
[378499750,1754886747590,-232.993454,0.00019402,2]
[378499751,1754886747600,-1007.50392,0.00019402,2]
[378499752,1754886747613,-1007.50392,0.00019402,2]
[378499753,1754886747623,-3360.120026,0.00019402,2]
[378499754,1754886747631,-3360.120026,0.00019402,2]
[378499755,1754886747640,-151.0,0.00019402,2]
[378499756,1754886747653,-160.302247,0.00019402,2]
[378499757,1754886747662,-160.302247,0.00019402,2]
[378499758,1754886747671,-689.744918,0.00019402,2]
[378499759,1754886747680,-689.744918,0.00019402,2]
[378499760,1754886747690,-250.173049,0.00019402,2]
[378499761,1754886747699,-250.173049,0.00019402,2]
[378499762,1754886747708,-151.0,0.00019402,2]
[378499763,1754886747718,-854.492416,0.00019403,2]
[378499764,1754886747727,-854.492416,0.00019403,2]
[378499765,1754886747736,-151.0,0.00019403,2]
[378499766,1754886747746,-151.549278,0.00019403,2]
[378499767,1754886747756,-151.549278,0.00019403,2]
[378499768,1754886747766,-151.0,0.00019403,2]
[378499769,1754886747774,-151.0,0.00019403,2]
[378499770,1754886747784,-151.0,0.00019403,2]
[378499771,1754886747794,-220.232153,0.00019403,2]
[378499772,1754886747803,-220.232153,0.00019403,2]
[378499773,1754886747812,-151.0,0.00019403,2]
[378499774,1754886747821,-151.0,0.00019404,2]
[378499775,1754886747830,-201.17844,0.00019404,2]
[378499776,1754886747839,-201.17844,0.00019404,2]
[378499777,1754886747849,-151.0,0.00019404,2]
[378499778,1754886747857,-151.0,0.00019404,2]
[378499779,1754886747867,-151.0,0.00019404,2]
[378499780,1754886747876,-151.0,0.00019404,2]
[378499781,1754886747885,-637.09561,0.00019404,2]
[378499782,1754886747894,-151.512587,0.00019405,2]
[378499783,1754886747903,-151.512587,0.00019405,2]
[378499784,1754886747912,-232.267498,0.00019405,2]
[378499785,1754886747921,-207.305696,0.00019405,2]
[378499786,1754886747930,-207.305696,0.00019405,2]
[378499787,1754886747940,-413.949342,0.00019405,2]
[378499788,1754886747949,-151.0,0.00019405,2]
[378499789,1754886747958,-285.25996,0.00019405,2]
[378499790,1754886747968,-285.25996,0.00019405,2]
[378499791,1754886747977,-297.575564,0.00019406,2]
[378499792,1754886747986,-151.0,0.00019406,2]
[378499793,1754886747996,-151.0,0.00019406,2]
[378499794,1754886748006,-256.348556,0.00019406,2]
[378499795,1754886748016,-216.129799,0.00019406,2]
[378499796,1754886748026,-216.129799,0.00019406,2]
[378499797,1754886748036,-151.0,0.00019406,2]
[378499798,1754886748046,-151.0,0.00019406,2]
[378499799,1754886748055,-151.0,0.00019406,2]
[378499800,1754886748064,-646.67954,0.00019406,2]
[378499801,1754886748073,-646.67954,0.00019406,2]
[378499802,1754886748083,-502.992452,0.00019406,2]
[378499803,1754886748092,-502.992452,0.00019406,2]
[378499804,1754886748101,-151.0,0.00019406,2]
[378499805,1754886748112,-255.127643,0.00019406,2]
[378499806,1754886748121,-255.127643,0.00019406,2]
[378499807,1754886748131,-3057.688144,0.00019406,2]
[378499808,1754886748140,-3057.688144,0.00019406,2]
[378499809,1754886748150,-802.981874,0.00019406,2]
[378499810,1754886748160,-802.981874,0.00019406,2]
[378499811,1754886748170,-189.246881,0.00019407,2]
[378499812,1754886748179,-189.246881,0.00019407,2]
[378499813,1754886748188,-172.661456,0.00019407,2]
[378499814,1754886748198,-172.661456,0.00019407,2]
[378499815,1754886748207,-151.0,0.00019407,2]
[378499816,1754886748217,-269.224309,0.00019407,2]
[378499817,1754886748227,-269.224309,0.00019407,2]
[378499818,1754886748236,-897.489021,0.00019409,2]
[378499819,1754886748245,-359.76179104,0.00019418,2]
[378499820,1754886748255,-160.0,0.00019418,2]
[378499821,1754886748266,-239.84119403,0.00019418,2]
[378499822,1754886748276,-1000.0,0.00019421,2]
[378499823,1754886748286,-1000.0,0.00019421,2]
[378499824,1754886748295,-250.600946,0.00019421,2]
[378499825,1754886748304,-250.600946,0.00019421,2]
[378499826,1754886748313,-151.0,0.00019421,2]
[378499827,1754886748323,-441.0,0.00019425,2]
[378499828,1754886748333,-1506.75,0.00019438,2]
[378499829,1754886748343,-2092.88,0.00019438,2]
[378499830,1754886748352,-1484.73,0.00019438,2]
[378499831,1754886748362,-1352.34,0.00019438,2]
[378499832,1754886748371,-7378.0,0.00019438,2]
[378499833,1754886748381,-1869.19,0.00019438,2]
[378499834,1754886748390,-2590.55,0.00019438,2]
[378499835,1754886748400,-4686.95,0.00019438,2]
[378499836,1754886748409,-3658.33,0.00019438,2]
[378499837,1754886748418,-151.0,0.00019447,2]
[378499838,1754886748427,-1983.151483,0.00019447,2]
[378499839,1754886748436,-1983.151483,0.00019447,2]
[378499840,1754886748445,-705.952654,0.00019447,2]
[378499841,1754886748454,-705.952654,0.00019447,2]
[378499842,1754886748464,-171.350738,0.00019447,2]
[378499843,1754886748474,-158.884244,0.00019447,2]
[378499844,1754886748483,-158.884244,0.00019447,2]
[378499845,1754886748493,-1669.89,0.00019463,2]
[378499846,1754886748503,-747.03,0.00019463,2]
[378499847,1754886748511,-2364.88,0.00019463,2]
[378499848,1754886748520,-2423.22,0.00019463,2]
[378499849,1754886748529,-1881.34,0.00019463,2]
[378499850,1754886748538,-1965.12,0.00019463,2]
[378499851,1754886748548,-1429.66,0.00019463,2]
[378499852,1754886748557,-1438.72,0.00019463,2]
[378499853,1754886748566,-1146.62,0.00019463,2]
[378499854,1754886748576,-2833.62,0.00019463,2]
[378499855,1754886748585,-782.18,0.00019463,2]
[378499856,1754886748595,-400.0,0.00019464,2]
[378499857,1754886748605,-617.49,0.00019464,2]
[378499858,1754886748616,-400.0,0.00019464,2]
[378499859,1754886748625,-1995.24,0.00019464,2]
[378499860,1754886748634,-400.0,0.00019464,2]
[378499861,1754886748643,-400.0,0.00019464,2]
[378499862,1754886748654,-1019.54,0.00019464,2]
[378499863,1754886748663,-1059.04,0.00019464,2]
[378499864,1754886748672,-1393.23,0.00019464,2]
[378499865,1754886748681,-865.35,0.00019464,2]
[378499866,1754886748693,-400.0,0.00019464,2]
[378499867,1754886748702,-2266.42,0.00019464,2]
[378499868,1754886748711,-2310.21,0.00019464,2]
[378499869,1754886748720,-400.0,0.00019464,2]
[378499870,1754886748730,-898.11,0.00019464,2]
[378499871,1754886748740,-400.0,0.00019464,2]
[378499872,1754886748750,-474.3,0.00019464,2]
[378499873,1754886748760,-754.81,0.00019464,2]
[378499874,1754886748769,-445.35,0.00019464,2]
[378499875,1754886748779,-400.0,0.00019464,2]
[378499876,1754886748788,-780.7,0.00019464,2]
[378499877,1754886748797,-600.96,0.00019464,2]
[378499878,1754886748806,-822.971514,0.00019464,2]
[378499879,1754886748817,-830.43,0.00019464,2]
[378499880,1754886748826,-906.92,0.00019464,2]
[378499881,1754886748835,-452.87,0.00019464,2]
[378499882,1754886748844,-905.61,0.00019464,2]
[378499883,1754886748854,-779.35,0.00019464,2]
[378499884,1754886748863,-400.0,0.00019464,2]
[378499885,1754886748872,-872.521428,0.00019464,2]
[378499886,1754886748881,-245.7,0.00019464,2]
[378499887,1754886748890,-515.391656,0.00019464,2]
[378499888,1754886748900,-1163.2,0.00019464,2]
[378499889,1754886748909,-911.89,0.00019464,2]
[378499890,1754886748919,-801.19,0.00019464,2]
[378499891,1754886748928,-440.36,0.00019464,2]
[378499892,1754886748937,-1277.31,0.00019464,2]
[378499893,1754886748946,-514.07,0.00019464,2]
[378499894,1754886748956,-868.29,0.00019464,2]
[378499895,1754886748965,-668.83,0.00019464,2]
[378499896,1754886748974,-1375.88,0.00019464,2]
[378499897,1754886748983,-577.53,0.00019464,2]
[378499898,1754886748992,-8456.03,0.00019464,2]
[378499899,1754886749002,-400.0,0.00019464,2]
[378499900,1754886749012,-649.48,0.00019464,2]
[378499901,1754886749021,-1680.21,0.00019464,2]
[378499902,1754886749030,-1049.17,0.00019464,2]
[378499903,1754886749039,-400.0,0.00019464,2]
[378499904,1754886749049,-951.39,0.00019464,2]
[378499905,1754886749059,-454.86,0.00019464,2]
[378499906,1754886749068,-824.89,0.00019464,2]
[378499907,1754886749078,-407.63,0.00019464,2]
[378499908,1754886749087,-585.0,0.00019464,2]
[378499909,1754886749097,-400.0,0.00019464,2]
[378499910,1754886749107,-1455.85,0.00019464,2]
[378499911,1754886749116,-400.0,0.00019464,2]
[378499912,1754886749125,-769.24,0.00019464,2]
[378499913,1754886749135,-400.0,0.00019464,2]
[378499914,1754886749143,-2199.58,0.00019464,2]
[378499915,1754886749152,-655.83,0.00019464,2]
[378499916,1754886749162,-400.0,0.00019464,2]
[378499917,1754886749171,-668.14,0.00019464,2]
[378499918,1754886749180,-2114.03,0.00019464,2]
[378499919,1754886749190,-717.01,0.00019464,2]
[378499920,1754886749200,-410.79,0.00019464,2]
[378499921,1754886749209,-526.86,0.00019464,2]
[378499922,1754886749218,-1612.96,0.00019464,2]
[378499923,1754886749228,-1228.52,0.00019464,2]
[378499924,1754886749237,-400.0,0.00019464,2]
[378499925,1754886749247,-2955.4,0.00019464,2]
[378499926,1754886749257,-400.0,0.00019464,2]
[378499927,1754886749266,-2031.05,0.00019464,2]
[378499928,1754886749275,-882.39,0.00019464,2]
[378499929,1754886749285,-400.0,0.00019464,2]
[378499930,1754886749294,-1330.79,0.00019464,2]
[378499931,1754886749304,-715.05,0.00019464,2]
[378499932,1754886749313,-1272.39,0.00019464,2]
[378499933,1754886749322,-8173.14,0.00019464,2]
[378499934,1754886749332,-1781.66,0.00019464,2]
[378499935,1754886749342,-477.68,0.00019464,2]
[378499936,1754886749352,-1122.75,0.00019464,2]
[378499937,1754886749361,-1331.68,0.00019464,2]
[378499938,1754886749371,-888.75,0.00019464,2]
[378499939,1754886749380,-400.0,0.00019464,2]
[378499940,1754886749390,-2038.29,0.00019464,2]
[378499941,1754886749399,-554.01,0.00019464,2]
[378499942,1754886749409,-651.43,0.00019464,2]
[378499943,1754886749418,-1369.36,0.00019464,2]
[378499944,1754886749427,-1339.24,0.00019464,2]
[378499945,1754886749437,-1803.47,0.00019464,2]
[378499946,1754886749446,-1113.52,0.00019464,2]
[378499947,1754886749455,-2663.6,0.00019464,2]
[378499948,1754886749466,-400.0,0.00019464,2]
[378499949,1754886749476,-3713.7,0.00019464,2]
[378499950,1754886749485,-1153.98,0.00019464,2]
[378499951,1754886749495,-1944.28,0.00019464,2]
[378499952,1754886749504,-1435.98,0.00019464,2]
[378499953,1754886749513,-2243.73,0.00019464,2]
[378499954,1754886749526,-3812.9,0.00019464,2]
[378499955,1754886749535,-592.95,0.00019464,2]
[378499956,1754886749544,-400.0,0.00019464,2]
[378499957,1754886749554,-1891.0,0.00019464,2]
[378499958,1754886749563,-1087.1,0.00019464,2]
[378499959,1754886749573,-1589.93,0.00019464,2]
[378499960,1754886749582,-1124.67,0.00019464,2]
[378499961,1754886749591,-495.91,0.00019464,2]
[378499962,1754886749601,-400.0,0.00019464,2]
[378499963,1754886749614,-2878.68,0.00019464,2]
[378499964,1754886749623,-950.56,0.00019464,2]
[378499965,1754886749633,-1307.49,0.00019464,2]
[378499966,1754886749643,-856.38,0.00019464,2]
[378499967,1754886749652,-739.41,0.00019464,2]
[378499968,1754886749662,-2695.27,0.00019464,2]
[378499969,1754886749671,-1363.59,0.00019464,2]
[378499970,1754886749681,-812.2,0.00019464,2]
[378499971,1754886749691,-855.45,0.00019464,2]
[378499972,1754886749700,-5196.27,0.00019464,2]
[378499973,1754886749709,-505.06453373,0.00019464,2]
[378499974,1754886749719,-5397.17,0.00019464,2]
[378499975,1754886749728,-1486.27,0.00019464,2]
[378499976,1754886749738,-1285.96,0.00019464,2]
[378499977,1754886749747,-2798.96,0.00019464,2]
[378499978,1754886749757,-1895.73,0.00019464,2]
[378499979,1754886749766,-1274.2,0.00019464,2]
[378499980,1754886749775,-1651.76,0.00019464,2]
[378499981,1754886749784,-806.53,0.00019464,2]
[378499982,1754886749794,-1256.2,0.00019464,2]
[378499983,1754886749804,-635.75,0.00019464,2]
[378499984,1754886749813,-849.98,0.00019464,2]
[378499985,1754886749823,-507.68,0.00019464,2]
[378499986,1754886749832,-400.0,0.00019464,2]
[378499987,1754886749841,-3777.59,0.00019464,2]
[378499988,1754886749850,-3620.19,0.00019464,2]
[378499989,1754886749860,-538.52,0.00019464,2]
[378499990,1754886749870,-1287.03,0.00019464,2]
[378499991,1754886749879,-539.41,0.00019464,2]
[378499992,1754886749889,-675.45,0.00019464,2]
[378499993,1754886749899,-1583.18,0.00019464,2]
[378499994,1754886749909,-701.46,0.00019464,2]
[378499995,1754886749919,-428.81,0.00019464,2]
[378499996,1754886749928,-151.59,0.00019465,2]
[378499997,1754886749938,-994.34,0.00019465,2]
[378499998,1754886749947,-152.09,0.00019465,2]
[378499999,1754886749956,-150.88,0.00019465,2]
[378500000,1754886749966,-150.44,0.00019465,2]
[378500001,1754886749975,-359.78,0.00019465,2]
[378500002,1754886749985,-342.81,0.00019465,2]
[378500003,1754886749994,-2341.94,0.00019465,2]
[378500004,1754886750003,-400.0,0.00019465,2]
[378500005,1754886750012,-406.85,0.00019465,2]
[378500006,1754886750021,-400.0,0.00019465,2]
[378500007,1754886750030,-400.0,0.00019465,2]
[378500008,1754886750040,-711.84,0.00019465,2]
[378500009,1754886750049,-400.0,0.00019465,2]
[378500010,1754886750058,-524.02,0.00019465,2]
[378500011,1754886750067,-604.75,0.00019465,2]
[378500012,1754886750077,-599.12,0.00019465,2]
[378500013,1754886750086,-400.0,0.00019465,2]
[378500014,1754886750095,-400.0,0.00019465,2]
[378500015,1754886750105,-982.92,0.00019465,2]
[378500016,1754886750114,-400.0,0.00019465,2]
[378500017,1754886750123,-766.83,0.00019465,2]
[378500018,1754886750134,-442.27,0.00019465,2]
[378500019,1754886750144,-502.43,0.00019465,2]
[378500020,1754886750153,-443.75,0.00019465,2]
[378500021,1754886750162,-400.0,0.00019465,2]
[378500022,1754886750172,-593.67,0.00019465,2]
[378500023,1754886750181,-210.83648139,0.00019465,2]
[378500024,1754886750191,-400.0,0.00019465,2]
[378500025,1754886750200,-400.0,0.00019465,2]
[378500026,1754886750209,-400.0,0.00019465,2]
[378500027,1754886750218,-400.0,0.00019465,2]
[378500028,1754886750228,-984.1,0.00019465,2]
[378500029,1754886750237,-400.0,0.00019465,2]
[378500030,1754886750247,-530.59,0.00019465,2]
[378500031,1754886750256,-408.13,0.00019465,2]
[378500032,1754886750266,-796.23,0.00019465,2]
[378500033,1754886750275,-400.0,0.00019465,2]
[378500034,1754886750284,-459.01,0.00019465,2]
[378500035,1754886750294,-1031.28,0.00019465,2]
[378500036,1754886750303,-490.33,0.00019465,2]
[378500037,1754886750312,-400.0,0.00019465,2]
[378500038,1754886750321,-562.38,0.00019465,2]
[378500039,1754886750330,-589.46,0.00019465,2]
[378500040,1754886750340,-435.55,0.00019465,2]
[378500041,1754886750349,-498.17,0.00019465,2]
[378500042,1754886750359,-201.67639972,0.00019465,2]
[378500043,1754886750368,-400.0,0.00019465,2]
[378500044,1754886750378,-498.63,0.00019465,2]
[378500045,1754886750387,-409.56,0.00019465,2]
[378500046,1754886750396,-400.0,0.00019465,2]
[378500047,1754886750405,-567.63,0.00019465,2]
[378500048,1754886750415,-690.83,0.00019465,2]
[378500049,1754886750424,-400.0,0.00019465,2]
[378500050,1754886750433,-400.0,0.00019465,2]
[378500051,1754886750442,-710.53,0.00019465,2]
[378500052,1754886750452,-436.05,0.00019465,2]
[378500053,1754886750461,-400.0,0.00019465,2]
[378500054,1754886750470,-400.0,0.00019465,2]
[378500055,1754886750479,-400.0,0.00019465,2]
[378500056,1754886750489,-400.0,0.00019465,2]
[378500057,1754886750498,-502.26,0.00019465,2]
[378500058,1754886750507,-400.0,0.00019465,2]
[378500059,1754886750516,-564.3,0.00019465,2]
[378500060,1754886750525,-313.84377671,0.00019465,2]
[378500061,1754886750534,-367.44180955,0.00019465,2]
[378500062,1754886750544,-400.0,0.00019465,2]
[378500063,1754886750554,-400.0,0.00019465,2]
[378500064,1754886750563,-400.0,0.00019465,2]
[378500065,1754886750807,-221.83891595,0.00019465,2]
[378500066,1754886750817,-400.0,0.00019465,2]
[378500067,1754886750827,-400.0,0.00019465,2]
[378500068,1754886750838,-400.0,0.00019465,2]
[378500069,1754886750848,-638.71,0.00019465,2]
[378500070,1754886750859,-400.0,0.00019465,2]
[378500071,1754886750868,-512.9,0.00019465,2]
[378500072,1754886750878,-400.0,0.00019465,2]
[378500073,1754886750888,-1168.39,0.00019465,2]
[378500074,1754886750899,-816.18,0.00019465,2]
[378500075,1754886750910,-400.0,0.00019465,2]
[378500076,1754886750920,-1319.27,0.00019465,2]
[378500077,1754886750929,-370.66366534,0.00019465,2]
[378500078,1754886750938,-848.1,0.00019465,2]
[378500079,1754886750947,-452.23,0.00019465,2]
[378500080,1754886750956,-763.33,0.00019465,2]
[378500081,1754886750966,-400.0,0.00019465,2]
[378500082,1754886750975,-400.0,0.00019465,2]
[378500083,1754886750985,-400.0,0.00019465,2]
[378500084,1754886750994,-400.0,0.00019465,2]
[378500085,1754886751004,-534.83,0.00019465,2]
[378500086,1754886751014,-1432.31,0.00019465,2]
[378500087,1754886751023,-400.0,0.00019465,2]
[378500088,1754886751033,-400.0,0.00019465,2]
[378500089,1754886751044,-1096.29,0.00019465,2]
[378500090,1754886751053,-481.17,0.00019465,2]
[378500091,1754886751063,-500.1,0.00019465,2]
[378500092,1754886751072,-400.0,0.00019465,2]
[378500093,1754886751082,-400.0,0.00019465,2]
[378500094,1754886751092,-1173.96,0.00019465,2]
[378500095,1754886751102,-400.0,0.00019465,2]
[378500096,1754886751111,-402.28,0.00019465,2]
[378500097,1754886751120,-400.0,0.00019465,2]
[378500098,1754886751130,-1368.54,0.00019465,2]
[378500099,1754886751140,-400.0,0.00019465,2]
[378500100,1754886751150,-752.63,0.00019465,2]
[378500101,1754886751159,-538.48,0.00019465,2]
[378500102,1754886751169,-673.3,0.00019465,2]
[378500103,1754886751179,-1433.44,0.00019465,2]
[378500104,1754886751189,-400.0,0.00019465,2]
[378500105,1754886751198,-1225.04,0.00019465,2]
[378500106,1754886751207,-740.04,0.00019465,2]
[378500107,1754886751217,-1059.77,0.00019465,2]
[378500108,1754886751226,-400.0,0.00019465,2]
[378500109,1754886751236,-400.0,0.00019465,2]
[378500110,1754886751246,-1292.83,0.00019465,2]
[378500111,1754886751256,-2940.45,0.00019465,2]
[378500112,1754886751267,-400.0,0.00019465,2]
[378500113,1754886751277,-400.0,0.00019465,2]
[378500114,1754886751287,-1244.19,0.00019465,2]
[378500115,1754886751296,-704.09,0.00019465,2]
[378500116,1754886751305,-963.23,0.00019465,2]
[378500117,1754886751315,-400.0,0.00019465,2]
[378500118,1754886751324,-505.67,0.00019465,2]
[378500119,1754886751334,-503.46,0.00019465,2]
[378500120,1754886751344,-400.0,0.00019465,2]
[378500121,1754886751353,-1548.12,0.00019465,2]
[378500122,1754886751362,-1351.37,0.00019465,2]
[378500123,1754886751371,-400.0,0.00019465,2]
[378500124,1754886751381,-439.78,0.00019465,2]
[378500125,1754886751390,-808.08,0.00019465,2]
[378500126,1754886751400,-2199.24,0.00019465,2]
[378500127,1754886751409,-1408.18,0.00019465,2]
[378500128,1754886751418,-400.0,0.00019465,2]
[378500129,1754886751428,-753.75,0.00019465,2]
[378500130,1754886751437,-400.0,0.00019465,2]
[378500131,1754886751447,-400.0,0.00019465,2]
[378500132,1754886751456,-533.78,0.00019465,2]
[378500133,1754886751466,-400.0,0.00019465,2]
[378500134,1754886751476,-516.94,0.00019465,2]
[378500135,1754886751485,-1025.15,0.00019465,2]
[378500136,1754886751495,-400.0,0.00019465,2]
[378500137,1754886751506,-1428.05,0.00019465,2]
[378500138,1754886751516,-1684.69,0.00019465,2]
[378500139,1754886751526,-400.0,0.00019465,2]
[378500140,1754886751535,-1041.68,0.00019465,2]
[378500141,1754886751545,-1024.18,0.00019465,2]
[378500142,1754886751554,-1016.3,0.00019465,2]
[378500143,1754886751564,-819.85,0.00019465,2]
[378500144,1754886751574,-400.0,0.00019465,2]
[378500145,1754886751584,-1791.52,0.00019465,2]
[378500146,1754886751596,-448.18,0.00019465,2]
[378500147,1754886751609,-973.65,0.00019465,2]
[378500148,1754886751619,-718.62,0.00019465,2]
[378500149,1754886751628,-500.0,0.00019465,2]
[378500150,1754886751637,-500.0,0.00019465,2]
[378500151,1754886751647,-500.0,0.00019465,2]
[378500152,1754886751657,-500.0,0.00019465,2]
[378500153,1754886751666,-500.0,0.00019465,2]
[378500154,1754886751675,-500.0,0.00019465,2]
[378500155,1754886751685,-500.0,0.00019465,2]
[378500156,1754886751694,-500.0,0.00019465,2]
[378500157,1754886751703,-454.71,0.00019465,2]
[378500158,1754886751713,-500.0,0.00019465,2]
[378500159,1754886751722,-500.0,0.00019465,2]
[378500160,1754886751731,-500.0,0.00019465,2]
[378500161,1754886751740,-500.0,0.00019465,2]
[378500162,1754886751750,-420.94,0.00019465,2]
[378500163,1754886751759,-500.0,0.00019465,2]
[378500164,1754886751768,-500.0,0.00019465,2]
[378500165,1754886751778,-500.0,0.00019465,2]
[378500166,1754886751787,-500.0,0.00019465,2]
[378500167,1754886751798,-500.0,0.00019465,2]
[378500168,1754886751807,-500.0,0.00019465,2]
[378500169,1754886751819,-500.0,0.00019465,2]
[378500170,1754886751830,-500.0,0.00019465,2]
[378500171,1754886751839,-500.0,0.00019465,2]
[378500172,1754886751848,-500.0,0.00019465,2]
[378500173,1754886751857,-538.94,0.00019465,2]
[378500174,1754886751867,-500.0,0.00019465,2]
[378500175,1754886751877,-500.0,0.00019465,2]
[378500176,1754886751887,-500.0,0.00019465,2]
[378500177,1754886751896,-500.0,0.00019465,2]
[378500178,1754886751906,-500.0,0.00019465,2]
[378500179,1754886751916,-500.0,0.00019465,2]
[378500180,1754886751929,-500.0,0.00019465,2]
[378500181,1754886751939,-500.0,0.00019465,2]
[378500182,1754886751949,-500.0,0.00019465,2]
[378500183,1754886751959,-500.0,0.00019465,2]
[378500184,1754886751968,-500.0,0.00019465,2]
[378500185,1754886751978,-500.0,0.00019465,2]
[378500186,1754886751987,-500.0,0.00019465,2]
[378500187,1754886751997,-500.0,0.00019465,2]
[378500188,1754886752007,-500.0,0.00019465,2]
[378500189,1754886752018,-500.0,0.00019465,2]
[378500190,1754886752030,-500.0,0.00019465,2]
[378500191,1754886752041,-500.0,0.00019465,2]
[378500192,1754886752051,-500.0,0.00019465,2]
[378500193,1754886752061,-400.0,0.00019465,2]